fUSD/lending_fUSD_20240501
["ID","MTS","AMOUNT","RATE_DAILY","PERIOD"]
[325200216,1714575059303,-250.89206367,0.00027,2]
[325200217,1714575059313,-999.99999901,0.00027,2]
[325200218,1714575059322,-1036.0,0.00027,2]
[325200219,1714575059331,-2000.0,0.00027,2]
[325200220,1714575059341,-150.0,0.00027,5]
[325200221,1714575059350,-2000.0,0.0002701,2]
[325200222,1714575059359,-2000.0,0.0002702,2]
[325200223,1714575059369,-2000.0,0.0002703,2]
[325200224,1714575059382,-2000.0,0.0002704,2]
[325200225,1714575059391,-3536.949217,0.0002705,2]
[325200226,1714575059401,-150.10647152,0.00027064,2]
[325200227,1714575059410,-1054.58902169,0.00027099,2]
[325200228,1714575059420,-3000.0,0.000271,2]
[325200229,1714575059429,-22274.10327658,0.00027135,2]
[325200230,1714575059443,-1556.49943799,0.00027135,2]
[325200231,1714575060919,-154.317,0.00013,2]
[325200232,1714575060930,-285.1,0.00014,2]
[325200233,1714575060942,-285.1,0.00014,2]
[325200234,1714575060951,-285.1,0.00014,2]
[325200235,1714575060961,-285.1,0.00014,2]
[325200236,1714575060970,-285.1,0.00014,2]
[325200237,1714575060980,-285.1,0.00014,2]
[325200238,1714575060989,-285.1,0.00014,2]
[325200239,1714575060999,-285.1,0.00014,2]
[325200240,1714575061009,-285.1,0.00014,2]
[325200241,1714575061019,-117.90370833,0.00014,2]
[325200242,1714575061031,-167.19629167,0.00014,2]
[325200243,1714575061041,-285.1,0.00014,2]
[325200244,1714575061052,-285.1,0.00014,2]
[325200245,1714575061064,-68.71370873,0.00014,2]
[325200246,1714575061076,-216.38629127,0.00014,2]
[325200247,1714575061086,-285.1,0.00014,2]
[325200248,1714575061095,-184.51371073,0.00014,2]
[325200249,1714575061108,-100.58628927,0.00014,2]
[325200250,1714575061118,-285.1,0.00014,2]
[325200251,1714575061131,-285.1,0.00014,2]
[325200252,1714575061141,-285.1,0.00014,2]
[325200253,1714575061150,-285.1,0.00014,2]
[325200254,1714575061160,-285.1,0.00014,2]
[325200255,1714575061169,-285.1,0.00014,2]
[325200256,1714575061178,-285.1,0.00014,2]
[325200257,1714575061187,-285.1,0.00014,2]
[325200258,1714575061196,-152.642945,0.00014,2]
[325200259,1714575061208,-132.457055,0.00014,2]
[325200260,1714575061218,-285.1,0.00014,2]
[325200261,1714575061227,-285.1,0.00014,2]
[325200262,1714575061236,-285.1,0.00014,2]
[325200263,1714575061246,-285.1,0.00014,2]
[325200264,1714575061256,-285.1,0.00014,2]
[325200265,1714575061265,-285.1,0.00014,2]
[325200266,1714575061274,-150.0,0.00014734,2]
[325200267,1714575061285,-150.0,0.00014748,2]
[325200268,1714575061294,-150.0,0.00014828,2]
[325200269,1714575061303,-150.0,0.00014834,2]
[325200270,1714575061312,-150.0,0.00014856,2]
[325200271,1714575061322,-150.0,0.0001487,2]
[325200272,1714575061331,-150.0,0.00014889,2]
[325200273,1714575061341,-150.0,0.00014903,2]
[325200274,1714575061352,-150.0,0.00014949,2]
[325200275,1714575061362,-150.0,0.0001495,2]
[325200276,1714575061370,-150.0,0.00014985,2]
[325200277,1714575061382,-150.0,0.00015027,2]
[325200278,1714575061391,-150.0,0.00015072,2]
[325200279,1714575061401,-150.0,0.00015268,2]
[325200280,1714575061410,-150.0,0.00015301,2]
[325200281,1714575061419,-150.0,0.00015302,2]
[325200282,1714575061429,-150.0,0.00016,2]
[325200283,1714575061438,-1903.327934,0.00018356,2]
[325200284,1714575061457,-1903.327934,0.00019178,2]
[325200285,1714575061470,-5174.0875285,0.00027135,2]
[325200286,1714575061484,-814.22625206,0.00027135,2]
[325200287,1714575061497,-2279.79820878,0.00027135,2]
[325200288,1714575061510,-2961.86111591,0.00027135,2]
[325200289,1714575061521,-431.57,0.0002716,2]
[325200290,1714575061532,-4701.98629549,0.00027194,7]
[325200292,1714575062432,-150.0,0.00014754,2]
[325200293,1714575062443,-150.0,0.00014878,2]
[325200294,1714575062452,-150.0,0.00014947,2]
[325200295,1714575062462,-150.0,0.00014971,2]
[325200296,1714575062472,-150.0,0.00015028,2]
[325200297,1714575062482,-150.0,0.00015052,2]
[325200298,1714575062491,-150.0,0.0001528,2]
[325200299,1714575062501,-150.0,0.00015386,2]
[325200300,1714575062510,-8559.00370451,0.00027194,7]
[325200301,1714575062520,-13260.99,0.00027194,7]
[325200302,1714575062530,-151.0,0.00027201,2]
[325200303,1714575062539,-1054.58902169,0.00027271,2]
[325200304,1714575062548,-269.09505563,0.00027276,2]
[325200305,1714575062558,-1054.58902169,0.00027308,2]
[325200306,1714575062567,-4963.31,0.00027318,15]
[325200307,1714575062577,-156.26886035,0.00027329,2]
[325200308,1714575062586,-151.77233392,0.00027334,2]
[325200309,1714575062596,-1054.58902169,0.00027338,2]
[325200310,1714575062605,-1050.78,0.00027379,2]
[325200311,1714575062615,-501.17802338,0.0002738,2]
[325200312,1714575062626,-300.0,0.00027397,2]
[325200313,1714575062636,-1000.0,0.00027397,2]
[325200314,1714575062645,-3226.3,0.00027397,6]
[325200315,1714575062655,-152.13933997,0.00027397,4]
[325200316,1714575062664,-1287.89568357,0.00027397,15]
[325200317,1714575062677,-6678.21431643,0.00027397,15]
[325200318,1714575062687,-150.0,0.00027397,2]
[325200319,1714575062697,-10145.29,0.00027397,10]
[325200320,1714575062706,-2386.17068355,0.00027397,10]
[325200321,1714575062718,-294.14994472,0.00027397,10]
[325200322,1714575062729,-1634.60074247,0.00027397,10]
[325200323,1714575062741,-284.83040661,0.00027397,10]
[325200324,1714575062752,-293.30521316,0.00027397,10]
[325200325,1714575063572,-150.01,0.00012999,2]
[325200326,1714575063582,-600.51233814,0.00012999,2]
[325200327,1714575063594,-640.7472672,0.00012999,2]
[325200328,1714575063842,-389.63124367,0.00012999,2]
[325200329,1714575063855,-2223.49913872,0.00012999,2]
[325200330,1714575063865,-285.1,0.00014,2]
[325200331,1714575063875,-150.0,0.00014711,2]
[325200332,1714575063890,-150.0,0.00014748,2]
[325200333,1714575063900,-150.0,0.00014752,2]
[325200334,1714575063910,-150.0,0.00014815,2]
[325200335,1714575063920,-150.0,0.00014817,2]
[325200336,1714575063931,-150.0,0.00014944,2]
[325200337,1714575063940,-150.0,0.0001497,2]
[325200338,1714575063950,-150.0,0.00015048,2]
[325200339,1714575063960,-150.0,0.00015187,2]
[325200340,1714575063972,-150.0,0.0001526,2]
[325200341,1714575063982,-150.0,0.00015266,2]
[325200342,1714575063991,-150.0,0.00015297,2]
[325200343,1714575064000,-150.0,0.00015308,2]
[325200344,1714575064009,-150.0,0.0001534,2]
[325200345,1714575064020,-150.0,0.00015345,2]
[325200346,1714575064029,-150.0,0.00015353,2]
[325200347,1714575064038,-150.0,0.00015364,2]
[325200348,1714575064052,-150.0,0.00015371,2]
[325200349,1714575064062,-150.0,0.00015371,2]
[325200350,1714575064072,-150.0,0.00015381,2]
[325200351,1714575064082,-150.0,0.00015389,2]
[325200352,1714575064092,-150.0,0.00015395,2]
[325200353,1714575064101,-150.0,0.00015409,2]
[325200354,1714575064112,-150.0,0.00015414,2]
[325200355,1714575064122,-150.0,0.0001542,2]
[325200356,1714575064134,-150.0,0.00015428,2]
[325200357,1714575064143,-150.0,0.00015432,2]
[325200358,1714575064153,-150.0,0.00015433,2]
[325200359,1714575064163,-150.0,0.0001544,2]
[325200360,1714575064173,-150.0,0.0001545,2]
[325200361,1714575064182,-150.0,0.00015451,2]
[325200362,1714575064192,-150.0,0.00015452,2]
[325200363,1714575064201,-150.0,0.00015454,2]
[325200364,1714575064211,-150.0,0.00015464,2]
[325200365,1714575064222,-150.0,0.00015465,2]
[325200366,1714575064231,-150.0,0.00015471,2]
[325200367,1714575064240,-150.0,0.00015478,2]
[325200368,1714575064250,-150.0,0.00015525,2]
[325200369,1714575064260,-150.0,0.00015541,2]
[325200370,1714575064270,-150.0,0.00015554,2]
[325200371,1714575064279,-150.0,0.00015565,2]
[325200372,1714575064291,-150.0,0.00015567,2]
[325200373,1714575064300,-150.0,0.00015578,2]
[325200374,1714575064311,-150.0,0.00015593,2]
[325200375,1714575064319,-150.0,0.00015595,2]
[325200376,1714575064330,-150.0,0.00015599,2]
[325200377,1714575064340,-150.0,0.00015616,2]
[325200378,1714575064350,-150.0,0.00015633,2]
[325200379,1714575064360,-150.0,0.0001564,2]
[325200380,1714575064370,-150.0,0.0001564,2]
[325200381,1714575064381,-150.0,0.00015648,2]
[325200382,1714575064390,-150.0,0.00015653,2]
[325200383,1714575064400,-150.0,0.00015657,2]
[325200384,1714575064410,-150.0,0.00015665,2]
[325200385,1714575064419,-150.0,0.00015683,2]
[325200386,1714575064429,-150.0,0.00015694,2]
[325200387,1714575064439,-150.0,0.00015859,2]
[325200388,1714575064448,-150.0,0.00015862,2]
[325200389,1714575064459,-911.32,0.0001799,2]
[325200390,1714575064468,-1903.327934,0.0002,2]
[325200391,1714575064478,-3561.35300949,0.00027397,10]
[325200392,1714575064488,-1346.51,0.000274,2]
[325200393,1714575064498,-1123.45,0.000274,2]
[325200394,1714575064509,-1190.43,0.000274,2]
[325200395,1714575064520,-486.0,0.000274,2]
[325200396,1714575064529,-155.16997401,0.000274,2]
[325200397,1714575064539,-501.17802338,0.000274,2]
[325200398,1714575064548,-584.0,0.000274,2]
[325200399,1714575064557,-604.0,0.00027421,7]
[325200400,1714575064567,-212.604799,0.00027467,7]
[325200401,1714575064575,-1092.4364068,0.00027467,15]
[325200402,1714575064588,-9260.00894,0.00027467,15]
[325200403,1714575064600,-2908.5446532,0.00027467,15]
[325200404,1714575064610,-13260.99,0.00027467,15]
[325200405,1714575064620,-152.06110622,0.00027491,2]
[325200406,1714575064632,-414.22,0.00027498,2]
[325200407,1714575064641,-413.89,0.00027498,2]
[325200408,1714575064651,-910.83,0.00027498,2]
[325200409,1714575064661,-414.22,0.00027498,2]
[325200410,1714575064671,-18119.80953447,0.00027499,2]
[325200411,1714575064681,-1036.0,0.000275,120]
[325200412,1714575064691,-150.0,0.000275,5]
[325200413,1714575064701,-1054.58902188,0.00027565,2]
[325200414,1714575064711,-152.83783518,0.00027577,2]
[325200415,1714575064721,-155.3131403,0.00027588,2]
[325200416,1714575064732,-501.17802338,0.00027631,2]
[325200417,1714575064742,-1000.0,0.00027714,2]
[325200418,1714575064752,-514.84,0.00027714,2]
[325200419,1714575064763,-151.0,0.00027715,7]
[325200420,1714575064773,-151.0,0.00027715,7]
[325200421,1714575064783,-151.0,0.00027715,7]
[325200422,1714575064792,-151.0,0.00027715,7]
[325200423,1714575064802,-211.355483,0.00027715,7]
[325200424,1714575064812,-151.0,0.00027715,7]
[325200425,1714575064822,-151.0,0.00027715,7]
[325200426,1714575064831,-151.0,0.00027715,7]
[325200427,1714575064841,-269.09505587,0.0002774,2]
[325200428,1714575064850,-13260.99,0.0002774,15]
[325200429,1714575064861,-13260.99,0.0002774,15]
[325200430,1714575064873,-151.0,0.00027741,7]
[325200431,1714575064884,-151.0,0.00027741,7]
[325200432,1714575064895,-220.59336,0.00027741,7]
[325200433,1714575064906,-220.59336,0.00027741,7]
[325200434,1714575064915,-179.63988,0.00027741,7]
[325200435,1714575064926,-179.63988,0.00027741,7]
[325200436,1714575064937,-221.598469,0.00027741,7]
[325200437,1714575064947,-221.598469,0.00027741,7]
[325200438,1714575064956,-377.575489,0.00027741,7]
[325200439,1714575064966,-548.91493,0.00027741,7]
[325200440,1714575064977,-377.575489,0.00027741,7]
[325200441,1714575064986,-151.0,0.00027741,7]
[325200442,1714575064997,-274.484401,0.00027741,7]
[325200443,1714575065006,-151.0,0.00027741,7]
[325200444,1714575065016,-237.39057,0.00027741,7]
[325200445,1714575065025,-237.39057,0.00027741,7]
[325200446,1714575065035,-177.159009,0.00027741,7]
[325200447,1714575065045,-157.408408,0.00027741,7]
[325200448,1714575065055,-177.159009,0.00027741,7]
[325200449,1714575065065,-157.408408,0.00027741,7]
[325200450,1714575065076,-1458.305549,0.00027741,7]
[325200451,1714575065086,-1458.305549,0.00027741,7]
[325200452,1714575065096,-151.0,0.00027741,7]
[325200453,1714575065107,-158.006979,0.00027741,7]
[325200454,1714575065117,-158.006979,0.00027741,7]
[325200455,1714575065127,-573.064479,0.00027741,7]
[325200456,1714575065140,-573.064479,0.00027741,7]
[325200457,1714575065150,-307.237788,0.00027741,7]
[325200458,1714575065160,-307.237788,0.00027741,7]
[325200459,1714575065169,-151.0,0.00027741,7]
[325200460,1714575065179,-258.985858,0.00027741,7]
[325200461,1714575065189,-258.985858,0.00027741,7]
[325200462,1714575065200,-294.063377,0.00027741,7]
[325200463,1714575065210,-294.063377,0.00027741,7]
[325200464,1714575065220,-150.10647165,0.00027776,2]
[325200465,1714575065230,-501.17802338,0.00027789,2]
[325200466,1714575065239,-166.99392,0.00027882,4]
[325200467,1714575065249,-150.0,0.00027909,2]
[325200468,1714575065259,-1040.13,0.00027909,2]
[325200469,1714575065269,-162.94,0.00027909,2]
[325200470,1714575065278,-152.06110632,0.00027919,2]
[325200471,1714575065288,-501.1780236,0.00027934,2]
[325200472,1714575065298,-159.94611136,0.00027936,2]
[325200473,1714575065308,-10000.0,0.0002795,10]
[325200474,1714575065318,-151.0,0.0002795,7]
[325200475,1714575065327,-151.0,0.0002795,7]
[325200476,1714575065337,-151.0,0.0002795,7]
[325200477,1714575065347,-151.0,0.0002795,7]
[325200478,1714575065357,-151.0,0.0002795,7]
[325200479,1714575065366,-467.60503,0.0002795,7]
[325200480,1714575065376,-467.60503,0.0002795,7]
[325200481,1714575065387,-599.085775,0.0002795,7]
[325200482,1714575065397,-599.085775,0.0002795,7]
[325200483,1714575065406,-485.45,0.0002795,7]
[325200484,1714575065415,-485.45,0.0002795,7]
[325200485,1714575065435,-152.50492,0.0002795,7]
[325200486,1714575065445,-152.50492,0.0002795,7]
[325200487,1714575065455,-500.003855,0.0002795,7]
[325200488,1714575065465,-500.003855,0.0002795,7]
[325200489,1714575065474,-151.0,0.0002795,7]
[325200490,1714575065485,-151.0,0.0002795,7]
[325200491,1714575065495,-834.441592,0.0002795,7]
[325200492,1714575065505,-834.441592,0.0002795,7]
[325200493,1714575065514,-151.0,0.0002795,7]
[325200494,1714575065524,-151.0,0.0002795,7]
[325200495,1714575065534,-581.459563,0.0002795,7]
[325200496,1714575065544,-581.459563,0.0002795,7]
[325200497,1714575065554,-151.0,0.0002795,7]
[325200498,1714575065564,-305.576016,0.0002795,7]
[325200499,1714575065574,-305.576016,0.0002795,7]
[325200500,1714575065584,-151.0,0.0002795,7]
[325200501,1714575065593,-50000.0,0.00028,8]
[325200502,1714575065603,-1200.0,0.00028,29]
[325200503,1714575065614,-3851.78162025,0.00028,10]
[325200504,1714575065624,-4768.12591736,0.00028,120]
[325200505,1714575065635,-263.42857828,0.00028,2]
[325200506,1714575065645,-440.0,0.00028,30]
[325200507,1714575065654,-1036.0,0.00028,2]
[325200508,1714575065664,-1038.8963838,0.00028,2]
[325200509,1714575065674,-724.0,0.00028,16]
[325200510,1714575065683,-433.0,0.00028,2]
[325200511,1714575065693,-216.0,0.00028,2]
[325200512,1714575065702,-156.0,0.00028,2]
[325200513,1714575065712,-151.0,0.00028,7]
[325200514,1714575065723,-151.0,0.00028,7]
[325200515,1714575065733,-10000.0,0.00028,7]
[325200516,1714575065743,-10000.0,0.00028,7]
[325200517,1714575065753,-621.483748,0.00028,7]
[325200518,1714575065763,-621.483748,0.00028,7]
[325200519,1714575065773,-162.918862,0.00028,7]
[325200520,1714575065782,-495.91348,0.00028,7]
[325200521,1714575065792,-162.918862,0.00028,7]
[325200522,1714575065802,-495.91348,0.00028,7]
[325200523,1714575065812,-151.0,0.00028,7]
[325200524,1714575065821,-165.595541,0.00028,7]
[325200525,1714575065831,-165.595541,0.00028,7]
[325200527,1714575065840,-233.640538,0.00028,7]
[325200528,1714575065850,-223.98719079,0.00028,2]
[325200529,1714575065859,-233.640538,0.00028,7]
[325200530,1714575065869,-150.0,0.00028,5]
[325200531,1714575065879,-151.0,0.00028,7]
[325200532,1714575065895,-151.0,0.00028,7]
[325200533,1714575065905,-575.367403,0.00028,7]
[325200534,1714575065915,-575.367403,0.00028,7]
[325200535,1714575065925,-13260.99,0.00028014,15]
[325200536,1714575065936,-13260.99,0.00028014,15]
[325200537,1714575065945,-400.0,0.0002807,2]
[325200538,1714575065956,-4755.56623494,0.000281,15]
[325200539,1714575065966,-1208.0,0.00028115,30]
[325200540,1714575065979,-150.0,0.00028118,2]
[325200541,1714575065989,-414.22,0.00028459,2]
[325200542,1714575065999,-205.26,0.00028459,2]
[325200543,1714575066008,-414.22,0.00028459,2]
[325200544,1714575066018,-827.5,0.00028459,2]
[325200545,1714575066029,-828.33,0.00028459,2]
[325200546,1714575066038,-724.0,0.000285,17]
[325200547,1714575066047,-150.0,0.000285,5]
[325200548,1714575066057,-162.97,0.00028725,2]
[325200549,1714575066067,-150.0,0.00028725,2]
[325200550,1714575066076,-150.0,0.00028725,2]
[325200551,1714575066086,-254.71,0.00028725,2]
[325200552,1714575066095,-150.0,0.00028725,2]
[325200553,1714575066105,-150.0,0.00028725,2]
[325200554,1714575066115,-162.97,0.00028725,2]
[325200555,1714575066124,-150.0,0.00028725,2]
[325200556,1714575066135,-150.0,0.00028725,2]
[325200557,1714575066145,-162.97,0.00028725,2]
[325200558,1714575066154,-150.0,0.00028725,2]
[325200559,1714575066164,-150.0,0.00028725,2]
[325200560,1714575066174,-162.97,0.00028725,2]
[325200561,1714575066184,-150.0,0.00028725,2]
[325200562,1714575066194,-162.97,0.00028725,2]
[325200563,1714575066204,-162.97,0.00028725,2]
[325200564,1714575066213,-162.97,0.00028725,2]
[325200565,1714575066223,-301.48,0.00028733,2]
[325200566,1714575066232,-1044.26,0.00028733,2]
[325200567,1714575066242,-300.44,0.00028733,2]
[325200568,1714575066252,-150.0,0.00028733,2]
[325200569,1714575066262,-865.42,0.00028733,2]
[325200570,1714575066271,-162.97,0.00028733,2]
[325200571,1714575066281,-150.0,0.00028733,2]
[325200572,1714575066291,-150.0,0.00028733,2]
[325200573,1714575066300,-162.97,0.00028733,2]
[325200574,1714575066310,-162.97,0.00028733,2]
[325200575,1714575066320,-162.7,0.00028733,2]
[325200576,1714575066330,-1000.0,0.00028767,2]
[325200577,1714575066340,-3226.3,0.00028767,9]
[325200578,1714575066350,-2148.37238966,0.000288,12]
[325200579,1714575066360,-150.0,0.00028839,2]
[325200580,1714575066370,-178.28774648,0.000289,2]
[325200581,1714575066379,-1346.51,0.000289,2]
[325200582,1714575066390,-1123.45,0.000289,2]
[325200583,1714575066400,-1190.43,0.000289,2]
[325200584,1714575066410,-50000.0,0.00029,9]
[325200585,1714575066419,-563.61551475,0.00029,2]
[325200586,1714575066429,-864.29182641,0.00029,2]
[325200587,1714575066439,-208.29105389,0.00029,120]
[325200588,1714575066449,-1200.0,0.00029,30]
[325200589,1714575066459,-1036.0,0.00029,2]
[325200590,1714575066468,-724.0,0.00029,17]
[325200591,1714575066478,-150.0,0.00029,6]
[325200592,1714575066488,-155.0,0.00029175,2]
[325200593,1714575066497,-10000.0,0.000292,12]
[325200594,1714575066507,-150.0,0.00029273,2]
[325200595,1714575066516,-300.0,0.00029273,2]
[325200596,1714575066526,-150.0,0.00029273,2]
[325200597,1714575066535,-433.0,0.000294,2]
[325200598,1714575066544,-414.11,0.0002941,2]
[325200599,1714575066554,-414.22,0.00029418,2]
[325200600,1714575066563,-414.22,0.00029418,2]
[325200601,1714575066573,-414.22,0.00029418,2]
[325200602,1714575066582,-414.22,0.00029418,2]
[325200603,1714575066592,-414.22,0.00029418,2]
[325200604,1714575066602,-669.88,0.00029418,2]
[325200605,1714575066611,-414.22,0.00029418,2]
[325200606,1714575066620,-414.22,0.00029418,2]
[325200607,1714575066630,-414.22,0.00029418,2]
[325200608,1714575066640,-412.68,0.00029418,2]
[325200609,1714575066650,-414.22,0.00029418,2]
[325200610,1714575066659,-414.22,0.00029418,2]
[325200611,1714575066668,-414.22,0.00029418,2]
[325200612,1714575066677,-414.22,0.00029418,2]
[325200613,1714575066686,-414.22,0.00029418,2]
[325200614,1714575066696,-414.22,0.00029418,2]
[325200615,1714575066705,-414.22,0.00029418,2]
[325200616,1714575066714,-431.57,0.00029424,2]
[325200617,1714575066723,-5000.0,0.00029463,7]
[325200618,1714575066733,-724.0,0.000295,18]
[325200619,1714575066742,-150.0,0.000295,6]
[325200620,1714575066751,-162.97,0.00029547,2]
[325200621,1714575066761,-162.67,0.00029547,2]
[325200622,1714575066770,-150.0,0.0002956,2]
[325200623,1714575066780,-150.0,0.00029595,2]
[325200624,1714575066790,-300.0,0.00029595,2]
[325200625,1714575066799,-419.34,0.00029595,2]
[325200626,1714575066812,-522.29,0.00029595,2]
[325200627,1714575066821,-150.0,0.00029595,2]
[325200628,1714575066831,-150.0,0.00029595,2]
[325200629,1714575066845,-465.85,0.00029595,2]
[325200630,1714575066855,-150.0,0.00029595,2]
[325200631,1714575066869,-10000.0,0.000297,12]
[325200632,1714575066881,-207.8088345,0.000299,2]
[325200633,1714575066977,-275.919,0.00014,2]
[325200634,1714575066989,-9.181,0.00014,2]
[325200635,1714575067000,-150.0,0.00015223,2]
[325200636,1714575067021,-150.0,0.00015397,2]
[325200637,1714575067033,-150.0,0.00015746,2]
[325200638,1714575067045,-10.469,0.00015752,2]
[325200639,1714575067069,-139.531,0.00015752,2]
[325200640,1714575067080,-150.0,0.00015815,2]
[325200641,1714575067090,-150.0,0.0001586,2]
[325200642,1714575067100,-371.81732108,0.000299,2]
[325200643,1714575067121,-378.79104645,0.000299,2]
[325200644,1714575067137,-2041.58279797,0.000299,2]
[325200645,1714575067148,-1654.45602954,0.00029984,2]
[325200646,1714575067164,-5200.0,0.00029984,2]
[325200647,1714575067179,-757.25445626,0.00029984,2]
[325200648,1714575067277,-559.32082449,0.00029984,2]
[325200649,1714575067290,-575.33566999,0.00029984,2]
[325200650,1714575067405,-285.1,0.00014,2]
[325200651,1714575067416,-285.1,0.00014,2]
[325200652,1714575067427,-285.1,0.00014,2]
[325200653,1714575067438,-150.0,0.00015417,2]
[325200654,1714575067449,-150.0,0.00015512,2]
[325200655,1714575067459,-150.0,0.0001556,2]
[325200656,1714575067470,-150.0,0.00015597,2]
[325200657,1714575067481,-150.0,0.00015711,2]
[325200658,1714575067492,-150.0,0.00015728,2]
[325200659,1714575067503,-150.0,0.00015729,2]
[325200660,1714575067514,-125.51171266,0.0001587,2]
[325200661,1714575067529,-24.48828734,0.0001587,2]
[325200662,1714575067540,-26314.20883954,0.00029984,2]
[325200663,1714575067551,-352.42102634,0.00029987,2]
[325200664,1714575067562,-42281.81835486,0.0003,10]
[325200728,1714575753132,-155.0,0.00011875,2]
[325200729,1714575753159,-155.0,0.00011876,2]
[325200730,1714575753181,-8824.6628117,0.00011882,2]
[325200731,1714575753203,-1947.3371883,0.00012263,2]
[325200752,1714576234359,-155.0,0.00011033,2]
[325200755,1714576234369,-136.55922454,0.00011034,2]
[325200757,1714576234381,-18.44077546,0.00011034,2]
[325200759,1714576234391,-349.34656514,0.00011037,2]
[325200761,1714576234685,-73.60753826,0.00011037,2]
[325200762,1714576234695,-155.0,0.00011506,2]
[325200765,1714576234706,-155.0,0.00011506,2]
[325200766,1714576234716,-155.0,0.00011506,2]
[325200768,1714576234726,-155.0,0.00011506,2]
[325200771,1714576234737,-155.0,0.00011506,2]
[325200773,1714576234748,-200.0,0.00011511,2]
[325200775,1714576234759,-250.0,0.00011982,2]
[325200777,1714576234769,-4423.92392175,0.00012103,2]
[325200779,1714576234783,-259.40607825,0.00012103,2]
[325200781,1714576234792,-272.24234435,0.00012121,2]
[325200783,1714576234802,-1500.0,0.00012157,2]
[325200785,1714576234813,-161.11918863,0.00012245,2]
[325200787,1714576234823,-1847.0328117,0.00012263,2]
[325200789,1714576234834,-300.0,0.00012263,2]
[325200791,1714576234844,-300.0,0.00012263,2]
[325200793,1714576234855,-300.0,0.00012263,2]
[325200795,1714576234866,-300.0,0.00012263,2]
[325200797,1714576234877,-300.0,0.00012263,2]
[325200799,1714576234887,-300.0,0.00012263,2]
[325200801,1714576234896,-259.85448483,0.00012263,2]
[325200803,1714576234914,-40.14551517,0.00012263,2]
[325200805,1714576234923,-300.0,0.00012263,2]
[325200807,1714576234935,-300.0,0.00012263,2]
[325200809,1714576234944,-300.0,0.00012263,2]
[325200811,1714576234954,-300.0,0.00012263,2]
[325200813,1714576234964,-300.0,0.00012263,2]
[325200815,1714576234974,-300.0,0.00012263,2]
[325200817,1714576234983,-300.0,0.00012263,2]
[325200819,1714576234993,-300.0,0.00012263,2]
[325200821,1714576235003,-300.0,0.00012263,2]
[325200823,1714576235012,-300.0,0.00012263,2]
[325200825,1714576235021,-361.0,0.00012263,2]
[325200827,1714576235031,-640.5858,0.00012482,2]
[325200829,1714576235040,-587.73,0.000128,2]
[325200831,1714576235050,-3144.52,0.000128,2]
[325200833,1714576235059,-6576.01867983,0.00012878,2]
[325200835,1714576235072,-27149.23716871,0.00012878,2]
[325200837,1714576235082,-5307.6195,0.00012896,2]
[325200839,1714576235092,-16486.3965,0.00012897,2]
[325200841,1714576235102,-216.35313334,0.00012897,2]
[325200843,1714576235111,-179.20149185,0.00012897,2]
[325200845,1714576235120,-151.28319068,0.00012897,2]
[325200847,1714576235130,-179.20149184,0.00012899,2]
[325200849,1714576235140,-10000.0,0.000129,2]